fUST/lending_fUST_20240407
["ID","MTS","AMOUNT","RATE_DAILY","PERIOD"]
[321708928,1712422430330,15955.07293742,0.0002,2]
[321708929,1712422438034,221.80531601,0.00024981,2]
[321708931,1712422441445,189.073234,0.00024438,2]
[321708933,1712422456119,1185.57237452,0.000125,2]
[321708936,1712422493941,155.0,0.000125,2]
[321708937,1712422517940,155.0,0.000125,2]
[321708938,1712422534000,155.0,0.000125,2]
[321708939,1712422541863,211.89194258,0.000238,2]
[321708940,1712422553939,155.06820752,0.000125,2]
[321708941,1712422575938,160.00606786,0.000125,2]
[321708943,1712422675846,361.16843915,0.00025217,2]
[321708944,1712422686791,281.7045139,0.00024316,2]
[321708945,1712422715023,1872.9006353,0.00024316,2]
[321708946,1712422733000,16855.84181223,0.00024315,2]
[321708948,1712422843089,150.0,0.00023846,2]
[321708950,1712422867512,172.8644838,0.00023289,2]
[321708951,1712422943307,581.912826,0.00023295,2]
[321708952,1712422953773,313.7797394,0.00023289,2]
[321708953,1712422967722,155.01705188,0.00023289,2]
[321708954,1712422975705,460.09372115,0.00023289,2]
[321708955,1712422983658,155.64072563,0.00023289,2]
[321708956,1712422999309,271.8991831,0.00023289,2]
[321708957,1712423090080,701.28073088,0.000241,2]
[321708958,1712423095499,16026.80670325,0.00023289,2]
[321708961,1712423117201,13539.90578344,0.00023289,2]
[321708963,1712423123652,6058.35320119,0.00023289,2]
[321708964,1712423144311,752.42746153,0.00022215,2]
[321708966,1712423213321,17963.9396956,0.00023274,2]
[321708967,1712423279226,11069.7790597,0.00023287,2]
[321709034,1712423431815,-537.45185021,0.00024083,2]
[321709036,1712423431824,-155.0,0.00024084,2]
[321709038,1712423431834,-207.05974647,0.00024085,2]
[321709040,1712423431843,-1484.4319684,0.00024085,2]
[321709042,1712423431852,-288.93475132,0.00024207,2]
[321709044,1712423431861,-458.87310051,0.0002421,2]
[321709046,1712423431870,-22733.88796952,0.00024306,2]
[321709048,1712423431879,-300.0,0.00024307,2]
[321709049,1712423431888,-300.0,0.00024307,2]
[321709051,1712423431897,-1299.60755846,0.00024307,2]
[321709054,1712423431906,-5558.34219857,0.00024309,2]
[321709056,1712423431915,-240.32367457,0.00024309,2]
[321709058,1712423431924,-867.03,0.00024312,2]
[321709060,1712423431933,-778.11,0.00024312,2]
[321709061,1712423431943,-3748.12,0.00024312,2]
[321709063,1712423431952,-1022.86,0.00024312,2]
[321709066,1712423431962,-888.21,0.00024312,2]
[321709067,1712423431971,-500.0,0.00024312,2]
[321709069,1712423431980,-747.69,0.00024312,2]
[321709072,1712423431989,-500.0,0.00024312,2]
[321709073,1712423431998,-766.39,0.00024312,2]
[321709075,1712423432007,-2882.68,0.00024312,2]
[321709078,1712423432016,-925.92,0.00024312,2]
[321709079,1712423432025,-155.54597056,0.00024315,2]
[321709082,1712423432035,-252.87596169,0.00024315,2]
[321709084,1712423432044,-500.0,0.00024315,2]
[321709086,1712423432053,-500.0,0.00024315,2]
[321709088,1712423432062,-173.87998854,0.00024315,2]
[321709090,1712423432071,-500.0,0.00024315,2]
[321709092,1712423432080,-500.0,0.00024315,2]
[321709094,1712423432089,-500.0,0.00024315,2]
[321709096,1712423432097,-288.93475131,0.00024528,2]
[321709097,1712423432106,-867.03,0.00024586,2]
[321709100,1712423432115,-778.11,0.00024586,2]
[321709102,1712423432125,-3748.12,0.00024586,2]
[321709116,1712423432247,-1022.86,0.00024586,2]
[321709119,1712423432261,-888.21,0.00024586,2]
[321709121,1712423432270,-500.0,0.00024586,2]
[321709123,1712423432279,-747.69,0.00024586,2]
[321709125,1712423432289,-500.0,0.00024586,2]
[321709126,1712423432298,-766.39,0.00024586,2]
[321709129,1712423432307,-2882.68,0.00024586,2]
[321709130,1712423432316,-925.92,0.00024586,2]
[321709132,1712423432326,-500.0,0.00024589,2]
[321709134,1712423432335,-500.0,0.00024589,2]
[321709136,1712423432344,-500.0,0.00024589,2]
[321709139,1712423432354,-288.93475131,0.00024849,2]
[321709141,1712423432365,-363.2190771,0.00024859,2]
[321709143,1712423432376,-867.03,0.0002486,2]
[321709145,1712423432387,-41.5462517,0.0002486,2]
[321709150,1712423432436,-736.5637483,0.0002486,2]
[321709152,1712423432446,-2674.78744198,0.0002486,2]
[321709185,1712423432760,181.49671213,0.00023985,2]
[321709257,1712423437858,-631.66,0.00024312,2]
[321709259,1712423437867,-1073.33255802,0.0002486,2]
[321709261,1712423437877,-1022.86,0.0002486,2]
[321709262,1712423437887,-888.21,0.0002486,2]
[321709263,1712423437896,-500.0,0.0002486,2]
[321709264,1712423437906,-747.69,0.0002486,2]
[321709265,1712423437916,-500.0,0.0002486,2]
[321709266,1712423437925,-636.66605902,0.0002486,2]
[321709267,1712423437938,-129.72394098,0.0002486,2]
[321709268,1712423437947,-2882.68,0.0002486,2]
[321709269,1712423437957,-925.92,0.0002486,2]
[321709270,1712423437966,-500.0,0.00024863,2]
[321709271,1712423437976,-500.0,0.00024863,2]
[321709272,1712423437984,-500.0,0.00024863,2]
[321709273,1712423437993,-867.03,0.00025134,2]
[321709274,1712423438002,-186.64605898,0.00025134,2]
[321709275,1712423438013,-591.46394102,0.00025134,2]
[321709276,1712423438022,-708.14530251,0.00025134,2]
[321709429,1712423443020,-491.81164869,0.00024586,2]
[321709449,1712423445647,1177.90289061,0.0002276,2]
[321709453,1712423501951,250.0,0.00023796,2]
[321709454,1712423625877,4189.71146871,0.00023313,2]
[321709455,1712423625902,3094.95378039,0.00023313,2]
[321709457,1712423712663,24900.0,0.00023311,2]
[321709458,1712423747471,785.26859374,0.00022489,2]
[321709460,1712423877223,2340.5853249,0.00023299,2]
[321709461,1712423884020,200.0,0.00023299,2]
[321709463,1712423911769,534.644517,0.00023284,2]
[321709464,1712423927633,172.937622,0.00023017,2]
[321709465,1712424048786,523.51239582,0.0002276,2]
[321709477,1712424350057,349.00826388,0.00021213,2]
[321709478,1712424377406,267.322258,0.00023296,2]
[321709481,1712424521810,181.49671212,0.00023909,2]
[321709482,1712424534022,180.068966,0.00023005,2]
[321709522,1712424632072,-924.16540246,0.00024001,2]
[321709524,1712424632082,-537.45185021,0.00024002,2]
[321709526,1712424632091,-1484.4319684,0.00024003,2]
[321709528,1712424632100,-935.38149637,0.00024003,2]
[321709531,1712424632111,-195.72005964,0.00024003,2]
[321709534,1712424632120,-204.27994036,0.00024204,2]
[321709536,1712424632131,-95.72005964,0.00024204,2]
[321709538,1712424632140,-300.0,0.00024204,2]
[321709541,1712424632150,-2778.0154686,0.00024205,2]
[321709565,1712424638028,-19955.87250092,0.00024205,2]
[321709566,1712424638038,-407.09421309,0.00024205,2]
[321709567,1712424638048,-388.88868073,0.00024208,2]
[321709568,1712424638057,-401.51396299,0.00024208,2]
[321709569,1712424638067,-240.32367457,0.00024303,2]
[321709570,1712424638076,-523.95794291,0.00024308,2]
[321709571,1712424638086,-155.01240099,0.00024308,2]
[321709572,1712424638095,-1305.63026885,0.00024308,2]
[321709573,1712424638105,-851.81,0.00024313,2]
[321709574,1712424638114,-500.0,0.00024313,2]
[321709575,1712424638124,-500.0,0.00024313,2]
[321709576,1712424638133,-648.42,0.00024313,2]
[321709577,1712424638143,-500.0,0.00024313,2]
[321709578,1712424638153,-3250.1,0.00024313,2]
[321709580,1712424638162,-777.18,0.00024313,2]
[321709581,1712424638171,-500.0,0.00024313,2]
[321709582,1712424638180,-895.0,0.00024313,2]
[321709583,1712424638189,-654.23,0.00024313,2]
[321709584,1712424638199,-500.0,0.00024313,2]
[321709585,1712424638208,-670.59,0.00024313,2]
[321709586,1712424638218,-810.18,0.00024313,2]
[321709587,1712424638227,-584.84,0.00024313,2]
[321709588,1712424638236,-500.0,0.00024313,2]
[321709589,1712424638245,-2522.35,0.00024313,2]
[321709590,1712424638254,-170.04790249,0.00024314,2]
[321709591,1712424638264,-580.03,0.00024314,2]
[321709592,1712424638273,-500.0,0.00024314,2]
[321709593,1712424638282,-388.88868073,0.0002446,2]
[321709594,1712424638291,-500.0,0.00024583,2]
[321709595,1712424638300,-500.0,0.00024583,2]
[321709596,1712424638309,-500.0,0.00024583,2]
[321709597,1712424638319,-500.0,0.00024583,2]
[321709598,1712424638328,-564.74,0.00024583,2]
[321709599,1712424638338,-233.96115713,0.00024584,2]
[321709600,1712424638348,-163.88798017,0.00024584,2]
[321709601,1712424638357,-500.0,0.00024584,2]
[321709602,1712424638366,-500.0,0.00024584,2]
[321709603,1712424638375,-500.0,0.00024584,2]
[321709604,1712424638384,-500.0,0.00024584,2]
[321709605,1712424638393,-500.0,0.00024584,2]
[321709606,1712424638402,-500.0,0.00024584,2]
[321709607,1712424638412,-500.0,0.00024584,2]
[321709608,1712424638422,-500.0,0.00024584,2]
[321709609,1712424638432,-500.0,0.00024584,2]
[321709610,1712424638443,-500.0,0.00024584,2]
[321709611,1712424638453,-500.0,0.00024584,2]
[321709612,1712424638464,-744.42,0.00024584,2]
[321709613,1712424638473,-500.0,0.00024584,2]
[321709614,1712424638482,-351.63068103,0.00024584,2]
[321709615,1712424638490,-851.81,0.00024587,2]
[321709616,1712424638499,-648.42,0.00024587,2]
[321709617,1712424638509,-3250.1,0.00024587,2]
[321709618,1712424638519,-777.18,0.00024587,2]
[321709619,1712424638531,-500.0,0.00024587,2]
[321709620,1712424638540,-895.0,0.00024587,2]
[321709621,1712424638550,-654.23,0.00024587,2]
[321709622,1712424638559,-500.0,0.00024587,2]
[321709623,1712424638568,-670.59,0.00024587,2]
[321709624,1712424638577,-810.18,0.00024587,2]
[321709625,1712424638586,-584.84,0.00024587,2]
[321709626,1712424638597,-500.0,0.00024587,2]
[321709627,1712424638607,-2522.35,0.00024587,2]
[321709628,1712424638618,-580.03,0.00024588,2]
[321709629,1712424638628,-500.0,0.00024588,2]
[321709630,1712424638639,-280.0,0.00024658,2]
[321709631,1712424638649,-388.88868073,0.00024711,2]
[321709632,1712424638659,-500.0,0.00024857,2]
[321709633,1712424638668,-189.25368243,0.00024857,2]
[321709687,1712424651225,232.67217592,0.00022487,2]
[321709690,1712424949378,822.3257505,0.0002375,2]
[321709691,1712424952486,277.92659828,0.00022487,2]
[321709692,1712425029768,250.0,0.00023774,2]
[321709693,1712425037739,173.881189,0.000235,2]
[321709694,1712425070309,155.5554723,0.00024212,2]
[321709695,1712425071310,351.32471759,0.00024212,2]
[321709698,1712425174546,267.322258,0.00023739,2]
[321709711,1712425253687,185.28439886,0.00022487,2]
[321709713,1712425357164,307.4091279,0.00024211,2]
[321709715,1712425469415,155.55547229,0.00024211,2]
[321709719,1712425555071,150.0,0.00022112,2]
[321709720,1712425619161,250.55874693,0.00022112,2]
[321709721,1712425623054,155.0310062,0.00022112,2]
[321709723,1712425635158,690.1102328,0.00022112,2]
[321709724,1712425637191,268.98298693,0.00024211,2]
[321709725,1712425640976,155.0294556,0.00022112,2]
[321709726,1712425649104,250.55874693,0.00022112,2]
[321709727,1712425654969,576.36696068,0.00022112,2]
[321709728,1712425660974,155.0294556,0.00022112,2]
[321709729,1712425669254,250.55874693,0.00022112,2]
[321709730,1712425683081,155.0294556,0.00022112,2]
[321709731,1712425693108,251.48132287,0.00022112,2]
[321709732,1712425696158,314.06314232,0.00022112,2]
[321709733,1712425704978,155.86509092,0.00022112,2]
[321709734,1712425713124,251.48132287,0.00022112,2]
[321709735,1712425716489,314.06314232,0.00022112,2]
[321709736,1712425733106,251.48132287,0.00022112,2]
[321709737,1712425734109,314.06314232,0.00022112,2]
[321709738,1712425751113,251.48132287,0.00022112,2]
[321709739,1712425751733,384.60422548,0.00022112,2]
[321709740,1712425752125,314.06314232,0.00022112,2]
[321709741,1712425767115,251.48132287,0.00022112,2]
[321709742,1712425770119,313.32350412,0.00022112,2]
[321709743,1712425771663,384.21653262,0.00022112,2]
[321709744,1712425783122,289.5515119,0.00022112,2]
[321709745,1712425790187,314.06314232,0.00022112,2]
[321709746,1712425793666,482.40948984,0.00022112,2]
[321709747,1712425806118,314.06314232,0.00022112,2]
[321709750,1712425830123,314.06314232,0.00022112,2]
[321709786,1712425833244,-263.2651397,0.00024303,2]
[321709788,1712425833253,-260.55146371,0.00024304,2]
[321709790,1712425833263,-581.7509837,0.00024305,2]
[321709934,1712425838779,7530.34025561,0.00024,2]
[321709935,1712425838801,9480.0918342,0.00024,2]
[321709966,1712425843414,-822.32575053,0.00024305,2]
[321709974,1712425846120,314.06314232,0.00022112,2]
[321709985,1712425856382,411.50820953,0.00022111,2]
[321709986,1712425868123,189.5909768,0.00022112,2]
[321709989,1712425940429,609.7787752,0.00023443,2]
[321709990,1712425956479,5232.49645218,0.00023304,2]
[321709991,1712425956516,19667.50354782,0.00023304,2]
[321709992,1712425964038,1101.58520186,0.00022112,2]
[321709993,1712426037001,171.537602,0.00022927,2]
[321710001,1712426157496,274.33880635,0.000219,2]
[321710007,1712426262826,1194.408257,0.00023184,2]
[321710008,1712426268425,263.2651397,0.00023183,2]
[321710009,1712426269103,260.55146371,0.00023183,2]
[321710010,1712426324788,318.842082,0.00023183,2]
[321710014,1712426458857,182.89253757,0.000219,2]
[321710015,1712426526230,255.44422559,0.000219,2]
[321710016,1712426528085,3470.70800831,0.000219,2]
[321710017,1712426598687,775.895088,0.00023308,2]
[321710018,1712426652613,170.32812407,0.00023962,2]
[321710038,1712426760170,783.09452485,0.00021204,2]
[321710047,1712426796433,159.421041,0.00023257,2]
[321710050,1712426808135,-263.2651397,0.00024049,2]
[321710051,1712426808156,-154.98450155,0.0002405,2]
[321710052,1712426808176,-1131.10155601,0.0002405,2]
[321710053,1712426808198,-537.45185021,0.00024051,2]
[321710054,1712426808221,-869.09187261,0.00024052,2]
[321710077,1712426931317,1284.48650839,0.00023945,2]
[321710197,1712427032426,-2761.96791256,0.00024039,2]
[321710198,1712427032438,-1302.63165291,0.00024039,2]
[321710199,1712427032447,-867.75316092,0.0002404,2]
[321710200,1712427032459,-263.2651397,0.00024041,2]
[321710201,1712427032469,-2614.08004521,0.00024041,2]
[321710202,1712427032479,-2614.08004521,0.00024042,2]
[321710203,1712427032489,-300.0,0.00024042,2]
[321710205,1712427032498,-300.0,0.00024042,2]
[321710207,1712427032507,-22733.88796952,0.00024042,2]
[321710209,1712427032518,-183.73993751,0.0002405,2]
[321710211,1712427032528,-358.83767364,0.00024059,2]
[321710213,1712427032538,-500.0,0.00024059,2]
[321710215,1712427032547,-500.0,0.00024059,2]
[321710217,1712427032556,-500.0,0.00024072,2]
[321710219,1712427032566,-500.0,0.00024072,2]
[321710221,1712427032575,-500.0,0.00024072,2]
[321710223,1712427032584,-500.0,0.00024073,2]
[321710225,1712427032593,-270.35452789,0.00024073,2]
[321710226,1712427032604,-500.0,0.00024073,2]
[321710227,1712427032614,-865.63,0.00024073,2]
[321710228,1712427032626,-378.82867258,0.00024182,2]
[321710229,1712427032635,-322.89169328,0.00024182,2]
[321710230,1712427032646,-507.40894218,0.00024311,2]
[321710231,1712427032656,-170.32812404,0.00024318,2]
[321710232,1712427032671,-500.0,0.00024346,2]
[321710233,1712427032682,-500.0,0.00024346,2]
[321710234,1712427032691,-500.0,0.00024346,2]
[321710235,1712427032702,-500.0,0.00024347,2]
[321710236,1712427032712,-865.63,0.00024347,2]
[321710237,1712427032722,-235.36011352,0.00024382,2]
[321710238,1712427032732,-502.40292242,0.0002458,2]
[321710239,1712427032743,-155.96053139,0.0002458,2]
[321710240,1712427032753,-780.82,0.00024581,2]
[321710241,1712427032762,-594.39,0.00024581,2]
[321710242,1712427032770,-3985.75,0.00024581,2]
[321710243,1712427032780,-990.27,0.00024581,2]
[321710244,1712427032789,-500.0,0.00024581,2]
[321710245,1712427032798,-599.71,0.00024581,2]
[321710246,1712427032807,-500.0,0.00024581,2]
[321710247,1712427032816,-500.0,0.00024582,2]
[321710248,1712427032826,-163.7,0.00024582,2]
[321710249,1712427032835,-614.7,0.00024582,2]
[321710250,1712427032845,-500.0,0.00024582,2]
[321710251,1712427032854,-742.66,0.00024582,2]
[321710252,1712427032863,-2312.15,0.00024582,2]
[321710253,1712427032872,-536.11,0.00024582,2]
[321710254,1712427032881,-500.0,0.00024582,2]
[321710255,1712427032890,-531.7,0.00024582,2]
[321710256,1712427032899,-500.0,0.00024582,2]
[321710257,1712427032908,-500.0,0.00024582,2]
[321710258,1712427032917,-575.82959083,0.00024582,2]
[321710259,1712427032926,-599.58235185,0.00024582,2]
[321710348,1712427040877,-891.68561182,0.00024581,2]
[321710349,1712427040887,-589.09,0.00024581,2]
[321710350,1712427040896,-113.81764815,0.00024582,2]
[321710351,1712427040906,-490.67924672,0.00024582,2]
[321710352,1712427040915,-151.0,0.00024583,2]
[321710354,1712427040924,-386.971325,0.00024583,2]
[321710355,1712427040934,-386.971325,0.00024583,2]
[321710357,1712427040944,-151.0,0.00024583,2]
[321710358,1712427040953,-386.971325,0.00024584,2]
[321710359,1712427040963,-386.971325,0.00024584,2]
[321710360,1712427040972,-500.0,0.0002462,2]
[321710361,1712427040982,-213.64,0.0002462,2]
[321710362,1712427040992,-500.0,0.0002462,2]
[321710363,1712427041001,-500.0,0.00024621,2]
[321710364,1712427041010,-865.63,0.00024621,2]
[321710365,1712427041020,-156.15052858,0.00024854,2]
[321710366,1712427041030,-6065.5679913,0.00024855,2]
[321710367,1712427041040,-151.0,0.00024855,2]
[321710368,1712427041050,-780.82,0.00024855,2]
[321710369,1712427041059,-594.39,0.00024855,2]
[321710370,1712427041068,-3985.75,0.00024855,2]
[321710371,1712427041078,-990.27,0.00024855,2]
[321710372,1712427041087,-500.0,0.00024855,2]
[321710373,1712427041097,-151.0,0.00024855,2]
[321710374,1712427041106,-599.71,0.00024855,2]
[321710375,1712427041116,-500.0,0.00024855,2]
[321710376,1712427041126,-151.0,0.00024855,2]
[321710377,1712427041136,-589.09,0.00024855,2]
[321710378,1712427041146,-846.44820607,0.00024856,2]
[321710379,1712427041156,-151.0,0.00024856,2]
[321710380,1712427041166,-151.0,0.00024856,2]
[321710381,1712427041175,-500.0,0.00024856,2]
[321710382,1712427041185,-500.0,0.00024856,2]
[321710383,1712427041196,-386.971325,0.00024856,2]
[321710384,1712427041206,-386.971325,0.00024856,2]
[321710385,1712427041216,-386.971325,0.00024856,2]
[321710386,1712427041225,-386.971325,0.00024856,2]
[321710387,1712427041234,-742.66,0.00024856,2]
[321710388,1712427041244,-2178.29203824,0.00024856,2]
[321710389,1712427041304,-133.85796176,0.00024856,2]
[321710390,1712427041314,-536.11,0.00024856,2]
[321710391,1712427041324,-329.27203824,0.00024856,2]
[321710403,1712427043647,-170.72796176,0.00024856,2]
[321710404,1712427043658,-531.7,0.00024856,2]
[321710405,1712427043669,-500.0,0.00024856,2]
[321710406,1712427043678,-500.0,0.00024856,2]
[321710407,1712427043688,-713.4,0.00024856,2]
[321710408,1712427043697,-151.0,0.00024856,2]
[321710409,1712427043706,-151.0,0.00024856,2]
[321710410,1712427043715,-151.0,0.00024856,2]
[321710411,1712427043724,-151.0,0.00024857,2]
[321710412,1712427043732,-386.971325,0.00024857,2]
[321710413,1712427043743,-386.971325,0.00024857,2]
[321710414,1712427043753,-1614.75612294,0.00024858,2]
[321710415,1712427043762,-151.0,0.00024858,2]
[321710416,1712427043772,-1668.39841151,0.00024859,2]
[321710417,1712427043781,-542.62028101,0.00024859,2]
[321710418,1712427043791,-120.48218044,0.0002486,2]
[321710419,1712427043803,-121.89049167,0.0002486,2]
[321710420,1712427043813,-281.89758547,0.0002486,2]
[321710421,1712427043822,-155.01240099,0.0002486,2]
[321710422,1712427043831,-151.0,0.0002486,2]
[321710423,1712427043841,-162.2633904,0.00024882,2]
[321710424,1712427043850,-386.971325,0.00024882,2]
[321710425,1712427043859,-386.971325,0.00024882,2]
[321710426,1712427043961,-500.0,0.00024894,2]
[321710427,1712427043974,-500.0,0.00024894,2]
[321710428,1712427043984,-500.0,0.00024895,2]
[321710429,1712427043994,-865.63,0.00024895,2]
[321710430,1712427044003,-154.98450155,0.00025,2]
[321710431,1712427044012,-780.82,0.00025129,2]
[321710432,1712427044021,-594.39,0.00025129,2]
[321710433,1712427044030,-1983.76088646,0.00025129,2]
[321710498,1712427061540,522.06301657,0.00022757,2]
[321710501,1712427072770,200.0,0.00023643,2]
[321710510,1712427265489,171.333637,0.00023288,2]
[321710511,1712427302865,753.0701777,0.00023055,2]
[321710513,1712427362904,348.04201104,0.00022757,2]
[321710517,1712427447621,178.85062207,0.00023942,2]
[321710519,1712427474646,173.409405,0.00022779,2]
[321710521,1712427481480,949.634777,0.00023053,2]
[321710524,1712427513548,11369.2941954,0.00023393,2]
[321710525,1712427513576,13530.7058046,0.00023393,2]
[321710528,1712427524947,3950.2053039,0.00023393,2]
[321710533,1712427548592,250.0,0.00023283,2]
[321710536,1712427662581,205.94009933,0.00023958,2]
[321710537,1712427664556,232.02800736,0.00022756,2]
[321710541,1712427689987,1613.7058529,0.00023222,2]
[321710552,1712427777912,166.67884628,0.00023958,2]
[321710555,1712427794647,1707.1882636,0.00023096,2]
[321710556,1712427848059,178.85062205,0.00023921,2]
[321710571,1712427965709,154.68533824,0.00021293,2]
[321710575,1712428064670,474.817388,0.00023062,2]
[321710577,1712428132002,5778.03579658,0.00024,2]
[321710578,1712428143305,22733.88796952,0.00024,2]
[321710579,1712428144400,260.55146371,0.00024,2]
[321710580,1712428208146,180.19758694,0.00023957,2]
[321710583,1712428222916,260.55146371,0.00024,2]
[321710584,1712428229608,2614.08004521,0.00024,2]
[321710621,1712428232597,-1302.63165291,0.00024001,2]
[321710623,1712428232607,-14563.36016345,0.00024019,2]
[321710635,1712428232703,-8170.52780607,0.00024019,2]
[321710636,1712428232712,-402.60614981,0.0002402,2]
[321710637,1712428232721,-500.0,0.0002402,2]
[321710639,1712428232730,-247.87712493,0.00024025,2]
[321710641,1712428232739,-300.0,0.00024027,2]
[321710643,1712428232748,-300.0,0.00024027,2]
[321710645,1712428232757,-472.58706199,0.00024028,2]
[321710646,1712428232766,-88.4683152,0.00024028,2]
[321711184,1712428243754,-301.86866775,0.0002402,2]
[321712572,1712428266874,150.0,0.00021919,2]
[321712574,1712428430989,14873.08422011,0.00021919,2]
[321712575,1712428454418,175.056802,0.0002286,2]
[321712576,1712428454507,24900.0,0.00023134,2]
[321712577,1712428481478,5609.74912596,0.00024,2]
[321712579,1712428546316,250.0,0.00023003,2]
[321712580,1712428568034,150.0,0.00021919,2]
[321712582,1712428598738,353.640348,0.00023006,2]
[321712584,1712428637569,250.86016648,0.00023893,2]
[321712585,1712428639550,250.86016648,0.00023904,2]
[321712586,1712428641662,250.86016648,0.00023915,2]
[321712587,1712428643896,250.86016648,0.00023925,2]
[321712588,1712428645559,250.86016648,0.00023936,2]
[321712590,1712428708576,178.10633426,0.00023888,2]
[321712592,1712428855404,800.0,0.000239,2]
[321712593,1712428856693,155.51569958,0.00023874,2]
[321712594,1712428860571,300.0,0.00023972,2]
[321712595,1712428862113,300.0,0.00023972,2]
[321712596,1712428864375,215.79883466,0.000239,3]
[321712597,1712428869428,5778.03579658,0.00023972,2]
[321712598,1712428873089,867.82809104,0.00023972,2]
[321712600,1712428886853,5561.60923503,0.00023972,2]
[321712602,1712428920709,300.0,0.00023972,2]
[321712603,1712428921401,300.0,0.00023972,2]
[321712605,1712428957128,2761.96791256,0.00023972,2]
[321712607,1712428967010,260.55146371,0.00023972,2]
[321712608,1712428989100,155.84304253,0.00023898,2]
[321712611,1712429112057,176.820174,0.0002301,2]
[321712616,1712429269725,155.84304246,0.00023894,2]
[321712617,1712429360768,188.09865874,0.00023892,2]
[321712651,1712429431808,-22733.88796952,0.0002399,2]
[321712653,1712429431818,-6903.37194962,0.00023991,2]
[321712655,1712429431827,-300.0,0.00023992,2]
[321712657,1712429431837,-300.0,0.00023992,2]
[321712659,1712429431846,-1659.00512101,0.00023992,2]
[321712661,1712429431855,-6903.37194962,0.00023993,2]
[321712663,1712429431864,-500.0,0.00023997,2]
[321712665,1712429431874,-500.0,0.00023997,2]
[321712667,1712429431883,-500.0,0.00023997,2]
[321712669,1712429431892,-500.0,0.00023997,2]
[321712671,1712429431901,-500.0,0.00023997,2]
[321712672,1712429431910,-500.0,0.00023997,2]
[321712674,1712429431919,-500.0,0.00023997,2]
[321712676,1712429431928,-1761.37562904,0.00023998,2]
[321712678,1712429431937,-778.21550086,0.00023998,2]
[321712679,1712429431947,-5555.07516211,0.00023998,2]
[321712680,1712429431956,-176.59551373,0.00023998,2]
[321712681,1712429431965,-239.26801287,0.00023998,2]
[321712682,1712429431974,-500.0,0.00023999,2]
[321712683,1712429431983,-500.0,0.00023999,2]
[321712684,1712429431993,-865.51,0.00023999,2]
[321712685,1712429432002,-500.0,0.00023999,2]
[321712686,1712429432011,-520.09,0.00023999,2]
[321712687,1712429432020,-3602.04,0.00023999,2]
[321712688,1712429432029,-907.75,0.00023999,2]
[321712689,1712429432038,-500.0,0.00023999,2]
[321712690,1712429432047,-721.35,0.00023999,2]
[321712691,1712429432056,-549.73,0.00023999,2]
[321712692,1712429432066,-500.0,0.00023999,2]
[321712693,1712429432075,-653.95,0.00023999,2]
[321712694,1712429432085,-540.0,0.00023999,2]
[321712695,1712429432095,-680.77,0.00023999,2]
[321712696,1712429432104,-500.0,0.00023999,2]
[321712697,1712429432113,-2119.47,0.00023999,2]
[321712698,1712429432124,-500.0,0.00023999,2]
[321712699,1712429432134,-151.0,0.00023999,2]
[321712700,1712429432145,-151.0,0.00023999,2]
[321712701,1712429432155,-16059.93329412,0.00024,2]
[321712721,1712429437928,-1110.19208399,0.00024,2]
[321712743,1712429457357,924.16540246,0.00023056,2]
[321712745,1712429466689,379.88387502,0.00023784,2]
[321712746,1712429467710,155.02790502,0.00022797,2]
[321712750,1712429471983,714.2897253,0.000219,2]